[Event "25th Zadar Open 2018"]
[Site "Zadar"]
[Date "2018.12.18"]
[Round "5.21"]
[White "Ojas Kulkarni"]
[Black "Ivekovic, Bozidar"]
[Result "0-1"]
[ECO "E72"]
[WhiteElo "2282"]
[BlackElo "2406"]
[Annotator "NA"]
[PlyCount "70"]
[EventDate "2018.12.15"]
[EventType "swiss"]
[EventCountry "CRO"]
[SourceTitle "playchess.com"]
[Source "ChessBase"]
[SourceQuality "1"]
[TimeControl "40/5400+30:1800+30"]

1. c4 {[%emt 0:00:30]} Nf6 {[%emt 0:00:30]} 2. Nc3 {[%emt 0:00:00]} c6 {[%emt 0:00:30]} 3. e4 {[%emt 0:04:00]} d6 {[%emt 0:06:30]} 4. d4 {[%emt 0:03:30]} e5 {[%emt 0:01:30]} 5. Nge2 {[%emt 0:02:30]} Nbd7 $14 {[%emt 0:04:30] LiveBook: 84 Games} 6. g3 {[%emt 0:00:30]} g6 {[%emt 0:04:30]} 7. Bg2 {[%emt 0:00:30]} Bg7 {[%emt 0:00:30]} 8. O-O {[%emt 0:00:30]} O-O {[%emt 0:00:00]} 9. h3 {[%emt 0:04:30]} h5 {[%emt 0:10:00]} 10. Be3 {[%emt 0:03:30]} Re8 {[%emt 0:02:30]} 11. d5 {[%emt 0:02:30]} c5 {[%emt 0:08:30]} 12. Qd2 {[%emt 0:01:30]} h4 {[%emt 0:02:30]} 13. f4 {[%emt 0:01:30]} Nh5 {[%emt 0:05:30]} 14. f5 {[%emt 0:01:30]} hxg3 {[%emt 0:00:30]} 15. fxg6 {[%emt 0:11:30]} fxg6 {[%emt 0:00:00]} 16. Bg5 {[%emt 0:00:30]} Ndf6 {[%emt 0:13:00]} 17. Bxf6 {[%emt 0:01:30]} Nxf6 {[%emt 0:03:30]} 18. Qg5 {[%emt 0:17:30]} Kh7 {[%emt 0:00:30]} 19. Rf3 {[%emt 0:01:30]} Nh5 {[%emt 0:02:30]} 20. Qxd8 {[%emt 0:00:30]} Rxd8 {[%emt 0:00:30]} 21. Nxg3 {[%emt 0:00:00]} Nf4 {[%emt 0:02:30]} 22. Nge2 {[%emt 0:00:00]} g5 {[%emt 0:06:30]} 23. Ng3 {[%emt 0:01:30]} g4 {[%emt 0:06:21]} 24. hxg4 {[%emt 0:02:30]} Bxg4 {[%emt 0:00:01]} 25. Nf5 {[%emt 0:00:30]} Bxf3 {[%emt 0:01:24]} 26. Bxf3 {[%emt 0:00:00]} a6 {[%emt 0:06:31]} 27. a4 {[%emt 0:01:00]} Bf6 {[%emt 0:01:43]} 28. Kf2 {[%emt 0:01:30]} Kg6 {[%emt 0:02:02]} 29. b3 {[%emt 0:06:30]} Rh8 {[%emt 0:02:15]} 30. Ne2 {[%emt 0:05:30]} Rh2+ {[%emt 0:03:21]} 31. Ke3 {[%emt 0:00:30]} Rah8 {[%emt 0:00:35]} 32. Rg1+ {[%emt 0:01:30]} Bg5 {[%emt 0:00:02]} 33. Nxd6 {[%emt 0:00:30]} R8h3 {[%emt 0:02:34]} 34. Rxg5+ {[%emt 0:03:30]} Kxg5 {[%emt 0:00:07]} 35. Ng1 {[%emt 0:00:30]} Rg3 {[%emt 0:00:28]} 0-1

[Event "25th Zadar Open 2018"]
[Site "Zadar"]
[Date "2018.12.18"]
[Round "5.22"]
[White "Zelic, Mladen"]
[Black "Janzelj, Tim"]
[Result "0-1"]
[ECO "B23"]
[WhiteElo "2274"]
[BlackElo "2395"]
[Annotator "ChessBase"]
[PlyCount "90"]
[EventDate "2018.12.15"]
[EventType "swiss"]
[EventCountry "CRO"]
[SourceTitle "playchess.com"]
[Source "ChessBase"]
[SourceQuality "1"]
[TimeControl "40/5400+30:1800+30"]

1. e4 {[%emt 0:00:30]} d6 {[%emt 0:00:30]} 2. Nc3 {[%emt 0:00:00]} c5 {[%emt 0:00:00]} 3. f4 {[%emt 0:00:00]} g6 {[%emt 0:00:00]} 4. Nf3 {[%emt 0:00:30]} Bg7 {[%emt 0:00:00]} 5. Bb5+ {[%emt 0:00:30]} Bd7 {[%emt 0:00:00]} 6. Bxd7+ {[%emt 0:00:30]} Qxd7 {[%emt 0:00:30]} 7. O-O {[%emt 0:00:30]} Nc6 {[%emt 0:00:30]} 8. d3 {[%emt 0:00:30]} Nf6 {[%emt 0:01:30]} 9. Qe1 {[%emt 0:09:30]} Rc8 {[%emt 0:04:30]} 10. h3 {[%emt 0:12:30]} Nd4 {[%emt 0:01:30]} 11. Qf2 {[%emt 0:01:30]} Nxf3+ {[%emt 0:03:30]} 12. Qxf3 {[%emt 0:00:30]} e6 {[%emt 0:06:30]} 13. f5 {[%emt 0:02:30]} b5 {[%emt 0:14:30]} 14. Bg5 {[%emt 0:11:30]} O-O {[%emt 0:05:30]} 15. g4 {[%emt 0:03:30]} b4 {[%emt 0:00:30]} 16. Ne2 {[%emt 0:00:00]} c4 {[%emt 0:06:30]} 17. d4 {[%emt 0:15:00]} h6 {[%emt 0:25:30]} 18. Be3 {[%emt 0:01:30]} exf5 {[%emt 0:00:30]} 19. gxf5 {[%emt 0:02:30]} Rce8 {[%emt 0:02:30]} 20. Ng3 {[%emt 0:13:30]} Qe7 {[%emt 0:14:05]} 21. e5 {[%emt 0:02:30]} dxe5 {[%emt 0:00:10]} 22. dxe5 {[%emt 0:00:30]} Qxe5 {[%emt 0:00:07]} 23. Bxa7 {[%emt 0:00:00]} Ra8 {[%emt 0:05:03]} 24. Rae1 {[%emt 0:05:05]} Qxb2 {[%emt 0:00:15]} 25. Bc5 {[%emt 0:00:59]} Ra3 {[%emt 0:02:05]} 26. Qf2 {[%emt 0:02:41]} Rc8 {[%emt 0:01:24]} 27. fxg6 {[%emt 0:03:46]} fxg6 {[%emt 0:01:07]} 28. Be7 {[%emt 0:01:06]} Qc3 {[%emt 0:03:02]} 29. Ne2 {[%emt 0:08:11]} Qxh3 {[%emt 0:00:39]} 30. c3 {[%emt 0:01:08]} Ra5 {[%emt 0:00:38]} 31. Nf4 {[%emt 0:01:43]} Rg5+ {[%emt 0:01:15]} 32. Ng2 {[%emt 0:00:02]} Ng4 {[%emt 0:00:45]} 33. Qf4 {[%emt 0:00:39]} Ne3 {[%emt 0:00:48]} 34. Qxg5 {[%emt 0:01:33]} hxg5 {[%emt 0:00:01]} 35. Rxe3 {[%emt 0:00:00]} Qd7 {[%emt 0:00:41]} 36. Bxb4 {[%emt 0:00:00]} Re8 {[%emt 0:00:34]} 37. Rxe8+ {[%emt 0:00:12]} Qxe8 {[%emt 0:00:01]} 38. Re1 {[%emt 0:00:17]} Qb8 {[%emt 0:00:39]} 39. a4 {[%emt 0:00:38]} Qa7+ {[%emt 0:00:18]} 40. Ne3 {[%emt 0:00:00]} Be5 {[%emt 0:00:00]} 41. Kg2 {[%emt 0:01:30]} Qxa4 {[%emt 0:07:23]} 42. Re2 {[%emt 0:08:30]} Qd7 {[%emt 0:01:30]} 43. Kf2 {[%emt 0:02:30]} Qd3 {[%emt 0:01:30]} 44. Ra2 {[%emt 0:02:24]} Qe4 {[%emt 0:02:30]} 45. Ra6 {[%emt 0:03:04]} g4 {[%emt 0:00:30]} 0-1

[Event "25th Zadar Open 2018"]
[Site "Zadar"]
[Date "2018.12.18"]
[Round "5.23"]
[White "Samani, Yamac"]
[Black "Kurayan, Ruslan"]
[Result "1/2-1/2"]
[ECO "B76"]
[WhiteElo "2267"]
[BlackElo "2391"]
[Annotator "NA"]
[PlyCount "73"]
[EventDate "2018.12.15"]
[EventType "swiss"]
[EventCountry "CRO"]
[SourceTitle "playchess.com"]
[Source "ChessBase"]
[SourceQuality "1"]
[TimeControl "40/5400+30:1800+30"]

1. e4 {[%emt 0:00:30]} c5 {[%emt 0:06:30]} 2. Nf3 {[%emt 0:00:30]} d6 {[%emt 0:00:30]} 3. d4 {[%emt 0:00:30]} Nf6 {[%emt 0:00:00]} 4. Nc3 {[%emt 0:00:30]} cxd4 {[%emt 0:00:00]} 5. Nxd4 {[%emt 0:00:30]} g6 {[%emt 0:00:30]} 6. Be3 {[%emt 0:00:30]} Bg7 {[%emt 0:00:00]} 7. f3 {[%emt 0:00:30]} O-O {[%emt 0:00:00]} 8. Qd2 {[%emt 0:00:00]} Nc6 {[%emt 0:00:00]} 9. g4 {[%emt 0:03:00]} Be6 {[%emt 0:00:00]} 10. Nxe6 {[%emt 0:00:30]} fxe6 {[%emt 0:00:30]} 11. O-O-O {[%emt 0:00:30]} Rc8 {[%emt 0:04:30]} 12. Bc4 {[%emt 0:04:30]} Qd7 {[%emt 0:04:30]} 13. h4 {[%emt 0:03:30]} Ne5 {[%emt 0:18:30]} 14. Bb3 {[%emt 0:03:30]} a5 {[%emt 0:23:30]} 15. Na4 {[%emt 0:44:30]} Rc6 {[%emt 0:08:30]} 16. Qxa5 {[%emt 0:15:36]} Nxf3 {[%emt 0:10:30]} 17. Nc5 {[%emt 0:06:12]} Rxc5 {[%emt 0:01:04]} 18. Bxc5 {[%emt 0:00:08]} Nxg4 {[%emt 0:01:37]} 19. h5 {[%emt 0:02:24]} g5 {[%emt 0:03:14]} 20. Kb1 {[%emt 0:03:17]} Be5 {[%emt 0:05:20]} 21. Bb6 {[%emt 0:01:41]} h6 {[%emt 0:00:56]} 22. Rd3 {[%emt 0:00:42]} Kg7 {[%emt 0:03:21]} 23. a3 {[%emt 0:00:10]} Rf4 {[%emt 0:01:50]} 24. Ka2 {[%emt 0:01:57]} Nf6 {[%emt 0:01:02]} 25. Rf1 {[%emt 0:01:16]} g4 {[%emt 0:00:19]} 26. Qa8 {[%emt 0:00:37]} Qc6 {[%emt 0:03:28]} 27. Qd8 {[%emt 0:00:51]} Kf7 {[%emt 0:01:44]} 28. Be3 {[%emt 0:00:29]} Qxe4 {[%emt 0:00:17]} 29. Bxf4 {[%emt 0:00:23]} Bxf4 {[%emt 0:01:30]} 30. Rc3 {[%emt 0:00:30]} Nxh5 {[%emt 0:00:43]} 31. Rc8 {[%emt 0:00:40]} Ng7 {[%emt 0:00:26]} 32. Qg8+ {[%emt 0:00:27]} Kg6 {[%emt 0:00:08]} 33. Rf8 {[%emt 0:00:32]} Bg5 {[%emt 0:00:17]} 34. Qf7+ {[%emt 0:00:38]} Kh7 {[%emt 0:00:01]} 35. Qg8+ {[%emt 0:01:14]} Kg6 {[%emt 0:00:02]} 36. Qf7+ {[%emt 0:04:07]} Kh7 {[%emt 0:00:07]} 37. Qg8+ {[%emt 0:00:24]} 1/2-1/2

[Event "25th Zadar Open 2018"]
[Site "Zadar"]
[Date "2018.12.18"]
[Round "5.24"]
[White "Mendonca, Leon Luke"]
[Black "Der Manuelian, Haik"]
[Result "1/2-1/2"]
[ECO "D11"]
[WhiteElo "2350"]
[BlackElo "2262"]
[Annotator "NA"]
[PlyCount "121"]
[EventDate "2018.12.15"]
[EventType "swiss"]
[EventCountry "CRO"]
[SourceTitle "playchess.com"]
[Source "ChessBase"]
[SourceQuality "1"]
[TimeControl "40/5400+30:1800+30"]

1. d4 {[%emt 0:00:30]} d5 {[%emt 0:00:30]} 2. c4 {[%emt 0:00:00]} c6 {[%emt 0:00:00]} 3. Nf3 {[%emt 0:00:00]} Nf6 {[%emt 0:00:00]} 4. g3 {[%emt 0:00:00]} dxc4 {[%emt 0:00:30]} 5. Bg2 {[%emt 0:04:00]} g6 {[%emt 0:00:30] D11: Slav Defence: 3 Nf3 sidelines and 3...Nf6 4 e3 Bg4} 6. O-O {[%emt 0:09:30]} Bg7 {[%emt 0:00:30]} 7. a4 {[%emt 0:02:30]} Ne4 {[%emt 0:01:30]} 8. Qc2 {[%emt 0:07:30]} Nd6 {[%emt 0:00:00]} 9. Nbd2 {[%emt 0:04:30]} Na6 $146 {[%emt 0:04:00]} ({Predecessor:} 9... Be6 10. Ng5 Qc8 11. Nde4 Nxe4 12. Qxe4 Bf5 13. Qf4 h6 14. Nf3 {0-1 (32) Dragun,K (2492)-Bartel,M (2619) Chorzow 2013}) 10. Nxc4 {[%emt 0:07:30]} Bf5 {[%emt 0:18:30]} 11. Nxd6+ {[%emt 0:03:30]} exd6 {[%emt 0:00:30]} 12. e4 {[%emt 0:09:30]} Bg4 {[%emt 0:00:00]} 13. Be3 {[%emt 0:01:30]} Qd7 {[%emt 0:07:00]} 14. Qb3 {[%emt 0:09:30]} O-O {[%emt 0:01:30]} 15. Nd2 {[%emt 0:03:30]} c5 {[%emt 0:04:30]} 16. d5 {[%emt 0:04:30]} Nb4 {[%emt 0:00:30]} 17. Rae1 {[%emt 0:03:30]} Bh3 {[%emt 0:08:30]} 18. Nc4 {[%emt 0:07:30]} Bxg2 {[%emt 0:00:30]} 19. Kxg2 {[%emt 0:00:30]} Rfe8 {[%emt 0:03:30]} 20. Bf4 {[%emt 0:01:07]} Bf8 {[%emt 0:00:30]} 21. f3 {[%emt 0:07:26]} Rad8 {[%emt 0:05:30]} 22. Bd2 {[%emt 0:01:57]} Na6 {[%emt 0:01:30]} 23. Bc3 {[%emt 0:03:20]} Bg7 {[%emt 0:03:30]} 24. Rf2 {[%emt 0:00:48]} b6 {[%emt 0:02:30]} 25. Rfe2 {[%emt 0:00:56]} Nc7 {[%emt 0:03:30]} 26. Na3 {[%emt 0:03:41]} Rb8 {[%emt 0:03:30]} 27. Nb5 {[%emt 0:00:20]} a6 {[%emt 0:03:30]} 28. Nxc7 {[%emt 0:00:05]} Qxc7 {[%emt 0:00:30]} 29. f4 {[%emt 0:00:27]} Bxc3 {[%emt 0:03:30]} 30. Qxc3 {[%emt 0:00:56]} Qd7 {[%emt 0:01:30]} 31. e5 {[%emt 0:02:26]} dxe5 {[%emt 0:00:30]} 32. Rxe5 {[%emt 0:00:04]} Rxe5 {[%emt 0:04:20]} 33. Qxe5 {[%emt 0:02:01]} Rd8 {[%emt 0:00:09]} 34. a5 {[%emt 0:00:35]} Qxd5+ {[%emt 0:04:39]} 35. Qxd5 {[%emt 0:00:07]} Rxd5 {[%emt 0:00:01]} 36. axb6 {[%emt 0:01:41]} Rd2+ {[%emt 0:00:04]} 37. Kf3 {[%emt 0:00:11]} Rxb2 {[%emt 0:00:05]} 38. Rc1 {[%emt 0:00:27]} Rxb6 {[%emt 0:02:03]} 39. Rxc5 {[%emt 0:00:01]} Rb8 {[%emt 0:02:44]} 40. Ra5 {[%emt 0:00:00]} Ra8 {[%emt 0:00:00]} 41. g4 {[%emt 0:06:24]} Kf8 {[%emt 0:21:55]} 42. h4 {[%emt 0:02:30]} h6 {[%emt 0:03:50]} 43. h5 {[%emt 0:07:45]} gxh5 {[%emt 0:06:59]} 44. gxh5 {[%emt 0:05:41]} Kg7 {[%emt 0:01:01]} 45. Kg4 {[%emt 0:00:22]} Kf6 {[%emt 0:01:27]} 46. Rf5+ {[%emt 0:03:58]} Ke7 {[%emt 0:02:16]} 47. Re5+ {[%emt 0:01:51]} Kf8 {[%emt 0:00:51]} 48. Ra5 {[%emt 0:00:07]} Kg7 {[%emt 0:00:11]} 49. Kf5 {[%emt 0:02:49]} Ra7 {[%emt 0:00:01]} 50. Kg4 {[%emt 0:00:07]} Kf6 {[%emt 0:01:17]} 51. Rf5+ {[%emt 0:00:52]} Ke6 {[%emt 0:01:03]} 52. Re5+ {[%emt 0:00:04]} Kd6 {[%emt 0:01:29]} 53. Ra5 {[%emt 0:00:02]} Ke6 {[%emt 0:02:13]} 54. Re5+ {[%emt 0:00:01]} Kf6 {[%emt 0:00:41]} 55. Ra5 {[%emt 0:00:21]} Kg7 {[%emt 0:02:27]} 56. Kf5 {[%emt 0:00:28]} Ra8 {[%emt 0:00:05]} 57. Kg4 {[%emt 0:00:04]} Kh7 {[%emt 0:01:20]} 58. Kf5 {[%emt 0:00:16]} Kg8 $11 {[%emt 0:01:21]} 59. Kf6 {[%emt 0:00:36]} Kf8 {[%emt 0:00:07]} 60. Kf5 {[%emt 0:00:11]} Kg7 {[%emt 0:00:42]} 61. Kg4 {[%emt 0:01:52]} 1/2-1/2

[Event "25th Zadar Open 2018"]
[Site "Zadar"]
[Date "2018.12.18"]
[Round "5.25"]
[White "Paszewski, Mateusz"]
[Black "Sahil, Tickoo"]
[Result "1-0"]
[ECO "B30"]
[WhiteElo "2342"]
[BlackElo "2224"]
[Annotator "NA"]
[PlyCount "111"]
[EventDate "2018.12.15"]
[EventType "swiss"]
[EventCountry "CRO"]
[SourceTitle "playchess.com"]
[Source "ChessBase"]
[SourceQuality "1"]
[TimeControl "40/5400+30:1800+30"]

1. e4 {[%emt 0:00:30]} c5 {[%emt 0:00:30]} 2. Nc3 {[%emt 0:00:00]} Nc6 {[%emt 0:00:30]} 3. Nge2 {[%emt 0:00:00]} e5 {[%emt 0:00:30]} 4. Nd5 {[%emt 0:00:00]} d6 {[%emt 0:01:30]} 5. Nec3 {[%emt 0:00:00]} Nge7 {[%emt 0:03:30]} 6. Bc4 {[%emt 0:00:30]} Nxd5 {[%emt 0:00:30]} 7. Nxd5 {[%emt 0:00:00]} Be7 {[%emt 0:00:30]} 8. O-O {[%emt 0:00:00]} O-O {[%emt 0:00:00]} 9. d3 {[%emt 0:00:30]} Be6 {[%emt 0:11:00]} 10. c3 {[%emt 0:00:30]} h6 {[%emt 0:14:30]} 11. f4 {[%emt 0:02:30]} exf4 {[%emt 0:01:30]} 12. Bxf4 {[%emt 0:00:00]} Na5 {[%emt 0:20:30]} 13. Nxe7+ {[%emt 0:05:00]} Qxe7 {[%emt 0:00:00]} 14. Bd5 {[%emt 0:00:30]} Nc6 {[%emt 0:07:00]} 15. Qh5 {[%emt 0:02:30]} Bxd5 {[%emt 0:20:46]} 16. exd5 {[%emt 0:05:30]} Ne5 {[%emt 0:00:02]} 17. Rae1 {[%emt 0:00:30]} f6 {[%emt 0:01:23]} 18. d4 {[%emt 0:25:30]} cxd4 {[%emt 0:00:10]} 19. cxd4 {[%emt 0:00:00]} Qf7 {[%emt 0:00:06]} 20. Qf5 {[%emt 0:10:00]} Qxd5 {[%emt 0:13:34]} 21. dxe5 {[%emt 0:00:30]} fxe5 {[%emt 0:00:08]} 22. Qh5 {[%emt 0:01:30]} Qd4+ {[%emt 0:01:03]} 23. Be3 {[%emt 0:00:00]} Rxf1+ {[%emt 0:00:14]} 24. Kxf1 {[%emt 0:00:00]} Qxb2 {[%emt 0:00:44]} 25. Qe2 {[%emt 0:14:30]} Rf8+ {[%emt 0:00:01]} 26. Bf2 {[%emt 0:00:00]} Qxe2+ {[%emt 0:00:25]} 27. Kxe2 {[%emt 0:00:00]} Rc8 {[%emt 0:01:09]} 28. Rd1 {[%emt 0:03:30]} Rc2+ {[%emt 0:00:31]} 29. Kf3 {[%emt 0:00:30]} Rxa2 {[%emt 0:00:57]} 30. Rxd6 {[%emt 0:00:00]} b5 {[%emt 0:01:07]} 31. Bg3 {[%emt 0:04:00]} b4 {[%emt 0:00:37]} 32. Bxe5 {[%emt 0:00:30]} a5 {[%emt 0:00:10]} 33. Rd7 {[%emt 0:00:00]} g5 {[%emt 0:00:42]} 34. g4 {[%emt 0:06:00]} b3 {[%emt 0:00:34]} 35. Rb7 {[%emt 0:02:30]} a4 {[%emt 0:00:06]} 36. Ke4 {[%emt 0:00:30]} Rf2 {[%emt 0:00:53]} 37. Rb4 {[%emt 0:00:30]} Kf7 {[%emt 0:00:34]} 38. Rxa4 {[%emt 0:01:49]} Re2+ {[%emt 0:00:01]} 39. Kd4 {[%emt 0:00:15]} Rd2+ {[%emt 0:00:48]} 40. Ke3 {[%emt 0:00:00]} Rg2 {[%emt 0:00:00]} 41. Kf3 {[%emt 0:05:56]} Rd2 {[%emt 0:10:45]} 42. Ra6 {[%emt 0:03:30]} Rd3+ {[%emt 0:00:30]} 43. Ke4 {[%emt 0:00:30]} Rh3 {[%emt 0:00:30]} 44. Rb6 {[%emt 0:01:30]} h5 {[%emt 0:04:16]} 45. Kf5 {[%emt 0:03:30]} Rf3+ {[%emt 0:00:22]} 46. Kxg5 {[%emt 0:00:30]} hxg4 {[%emt 0:00:02]} 47. Kxg4 {[%emt 0:00:30]} Re3 {[%emt 0:00:10]} 48. Kf5 {[%emt 0:00:00]} Rf3+ {[%emt 0:00:09]} 49. Bf4 {[%emt 0:00:00]} Ke7 {[%emt 0:00:08]} 50. h4 {[%emt 0:01:30]} Kf8 {[%emt 0:00:12]} 51. Rb7 {[%emt 0:00:00]} Kg8 {[%emt 0:00:19]} 52. h5 {[%emt 0:00:00]} Rc3 {[%emt 0:00:41]} 53. Bg5 {[%emt 0:00:30]} Rh3 {[%emt 0:01:36]} 54. Kg6 {[%emt 0:00:30]} Rf3 {[%emt 0:00:02]} 55. h6 {[%emt 0:00:30]} b2 {[%emt 0:00:33]} 56. Rb8+ {[%emt 0:00:30]} 1-0

[Event "25th Zadar Open 2018"]
[Site "Zadar"]
[Date "2018.12.18"]
[Round "5.26"]
[White "Krstulovic, Alex"]
[Black "Warakomska, Anna"]
[Result "1-0"]
[ECO "E99"]
[WhiteElo "2313"]
[BlackElo "2233"]
[Annotator "NA"]
[PlyCount "89"]
[EventDate "2018.12.15"]
[EventType "swiss"]
[EventCountry "CRO"]
[SourceTitle "playchess.com"]
[Source "ChessBase"]
[SourceQuality "1"]
[TimeControl "40/5400+30:1800+30"]

1. d4 {[%emt 0:00:30]} Nf6 {[%emt 0:00:30]} 2. c4 {[%emt 0:00:00]} g6 {[%emt 0:00:00]} 3. Nc3 {[%emt 0:00:00]} Bg7 {[%emt 0:00:00]} 4. e4 {[%emt 0:00:30]} d6 {[%emt 0:00:00]} 5. Be2 {[%emt 0:00:30]} O-O {[%emt 0:00:00]} 6. Nf3 {[%emt 0:01:30]} e5 {[%emt 0:01:30]} 7. O-O {[%emt 0:00:30]} Nc6 {[%emt 0:00:00]} 8. d5 {[%emt 0:00:30]} Ne7 {[%emt 0:00:00]} 9. Ne1 {[%emt 0:06:30]} Nd7 {[%emt 0:00:30]} 10. f3 {[%emt 0:00:30]} f5 {[%emt 0:00:30]} 11. Be3 {[%emt 0:00:30]} f4 {[%emt 0:00:30]} 12. Bf2 {[%emt 0:00:00]} g5 {[%emt 0:00:30]} 13. Nd3 {[%emt 0:00:00]} Nf6 {[%emt 0:01:30]} 14. c5 {[%emt 0:04:30]} Ng6 $14 {[%emt 0:01:30] LiveBook: 88 Games} 15. a4 {[%emt 0:03:30]} Rf7 {[%emt 0:08:30]} 16. a5 {[%emt 0:10:30]} Bf8 {[%emt 0:09:30]} 17. a6 {[%emt 0:13:30]} b6 {[%emt 0:10:30]} 18. cxb6 {[%emt 0:03:30]} cxb6 {[%emt 0:00:30]} 19. Nb4 {[%emt 0:02:30]} Ne8 {[%emt 0:06:30]} 20. Nb5 {[%emt 0:04:30]} g4 {[%emt 0:15:30]} 21. fxg4 {[%emt 0:01:30]} Qg5 {[%emt 0:03:30]} 22. Bf3 {[%emt 0:05:30]} Nf6 {[%emt 0:03:30]} 23. h3 {[%emt 0:00:30]} h5 {[%emt 0:01:30]} 24. gxh5 {[%emt 0:03:30]} Nh4 {[%emt 0:00:30]} 25. Bxh4 {[%emt 0:11:30]} Qxh4 {[%emt 0:00:30]} 26. Rf2 {[%emt 0:00:00]} Rg7 {[%emt 0:13:30]} 27. Kf1 {[%emt 0:00:00]} Nh7 {[%emt 0:06:27]} 28. Rc1 {[%emt 0:06:30]} Ng5 {[%emt 0:04:43]} 29. Rc7 {[%emt 0:01:53]} Bd7 {[%emt 0:02:10]} 30. Nc6 {[%emt 0:01:00]} Nxf3 {[%emt 0:08:08]} 31. Rxf3 {[%emt 0:01:46]} Bg4 {[%emt 0:02:25]} 32. Rxg7+ {[%emt 0:01:28]} Bxg7 {[%emt 0:00:24]} 33. hxg4 {[%emt 0:03:05]} Qh1+ {[%emt 0:00:04]} 34. Ke2 {[%emt 0:00:07]} Qxg2+ {[%emt 0:00:03]} 35. Kd3 {[%emt 0:00:12]} Qxb2 {[%emt 0:00:11]} 36. Nc3 {[%emt 0:00:24]} Qa3 {[%emt 0:00:36]} 37. Qa4 {[%emt 0:02:14]} Qb2 {[%emt 0:01:12]} 38. Ne7+ {[%emt 0:04:13]} Kh7 {[%emt 0:00:13]} 39. Qc6 {[%emt 0:00:00]} Qg2 {[%emt 0:00:00]} 40. Qxa8 {[%emt 0:00:00]} Qxf3+ {[%emt 0:00:00]} 41. Kc4 {[%emt 0:01:08]} b5+ {[%emt 0:06:54]} 42. Kb4 {[%emt 0:01:30]} Qxg4 {[%emt 0:01:30]} 43. Qg8+ {[%emt 0:00:00]} Kh6 {[%emt 0:00:30]} 44. Nf5+ {[%emt 0:00:00]} Kxh5 {[%emt 0:06:17]} 45. Qh7+ {[%emt 0:01:30]} 1-0

[Event "25th Zadar Open 2018"]
[Site "Zadar"]
[Date "2018.12.18"]
[Round "5.27"]
[White "Djoric, Dusan"]
[Black "Parnali, S Dharia"]
[Result "1-0"]
[ECO "C50"]
[WhiteElo "2298"]
[BlackElo "2118"]
[Annotator "NA"]
[PlyCount "147"]
[EventDate "2018.12.15"]
[EventType "swiss"]
[EventCountry "CRO"]
[SourceTitle "playchess.com"]
[Source "ChessBase"]
[SourceQuality "1"]
[TimeControl "40/5400+30:1800+30"]

1. e4 {[%emt 0:06:30]} e5 {[%emt 0:00:30]} 2. Nf3 {[%emt 0:00:30]} Nc6 {[%emt 0:00:00]} 3. Bc4 {[%emt 0:01:30]} Nf6 {[%emt 0:00:00]} 4. d3 {[%emt 0:00:30]} Bc5 {[%emt 0:00:30]} 5. Nc3 {[%emt 0:01:30]} h6 {[%emt 0:00:30]} 6. Nd5 {[%emt 0:01:30]} d6 {[%emt 0:00:30]} 7. h3 {[%emt 0:00:30]} Nxd5 {[%emt 0:01:30]} 8. Bxd5 {[%emt 0:00:30]} Ne7 {[%emt 0:00:00]} 9. Bb3 {[%emt 0:00:00]} O-O {[%emt 0:01:00]} 10. c3 {[%emt 0:09:00]} Ng6 {[%emt 0:01:30]} 11. O-O {[%emt 0:03:30]} Bb6 {[%emt 0:01:30]} 12. Be3 {[%emt 0:07:30]} Be6 {[%emt 0:00:30]} 13. d4 {[%emt 0:08:30]} Qf6 {[%emt 0:03:30]} 14. dxe5 {[%emt 0:05:30]} dxe5 {[%emt 0:01:30]} 15. Bxe6 {[%emt 0:00:00]} fxe6 {[%emt 0:01:30]} 16. Qe2 {[%emt 0:01:00]} Rf7 {[%emt 0:07:30]} 17. Nh2 {[%emt 0:03:30]} Raf8 {[%emt 0:05:30]} 18. g3 {[%emt 0:02:30]} Bxe3 {[%emt 0:02:30]} 19. Qxe3 {[%emt 0:00:30]} h5 {[%emt 0:00:30]} 20. h4 {[%emt 0:00:30]} b6 {[%emt 0:06:30]} 21. Qe2 {[%emt 0:02:30]} Nxh4 {[%emt 0:12:30]} 22. gxh4 {[%emt 0:01:30]} Qxh4 {[%emt 0:00:30]} 23. f3 {[%emt 0:00:30]} Rf6 {[%emt 0:01:30]} 24. Rf2 {[%emt 0:03:30]} Rg6+ {[%emt 0:00:30]} 25. Rg2 {[%emt 0:01:30]} Rgf6 {[%emt 0:03:30]} 26. Qe1 {[%emt 0:00:30]} Qf4 {[%emt 0:00:30]} 27. Qc1 {[%emt 0:00:30]} Kh7 {[%emt 0:01:30]} 28. Qxf4 {[%emt 0:00:30]} exf4 {[%emt 0:00:30]} 29. Rd1 {[%emt 0:00:30]} Kh6 {[%emt 0:00:30]} 30. Rd7 {[%emt 0:00:30]} R8f7 {[%emt 0:01:30]} 31. Rgd2 {[%emt 0:00:30]} g5 {[%emt 0:00:00]} 32. b4 {[%emt 0:01:30]} a6 {[%emt 0:02:00]} 33. Kg2 {[%emt 0:00:00]} Kg6 {[%emt 0:00:30]} 34. c4 {[%emt 0:00:00]} e5 {[%emt 0:00:30]} 35. R7d5 {[%emt 0:02:30]} Re7 {[%emt 0:00:30]} 36. c5 {[%emt 0:00:30]} Rc6 {[%emt 0:00:30]} 37. Kh3 {[%emt 0:00:30]} Kf6 {[%emt 0:01:30]} 38. a4 {[%emt 0:02:30]} Rh7 {[%emt 0:00:30]} 39. a5 {[%emt 0:01:30]} bxa5 {[%emt 0:00:30]} 40. bxa5 {[%emt 0:00:00]} Rh8 {[%emt 0:00:00]} 41. Rb2 {[%emt 0:01:00]} Re6 {[%emt 0:02:00]} 42. Rbd2 {[%emt 0:11:30]} g4+ {[%emt 0:02:30]} 43. fxg4 {[%emt 0:00:30]} hxg4+ {[%emt 0:00:30]} 44. Kxg4 {[%emt 0:00:30]} Re7 {[%emt 0:00:30]} 45. Kf3 {[%emt 0:01:30]} Rh3+ {[%emt 0:00:30]} 46. Kg2 {[%emt 0:00:30]} Rg3+ {[%emt 0:01:30]} 47. Kf2 {[%emt 0:01:30]} Rh7 {[%emt 0:05:30]} 48. Nf3 {[%emt 0:03:30]} Rhh3 {[%emt 0:00:30]} 49. R2d3 {[%emt 0:06:30]} Rh1 {[%emt 0:00:30]} 50. Rd1 {[%emt 0:01:30]} Rhh3 {[%emt 0:00:30]} 51. R5d3 {[%emt 0:00:30]} Rh8 {[%emt 0:01:30]} 52. Rd8 {[%emt 0:06:30]} Rhh3 {[%emt 0:00:00]} 53. R1d3 {[%emt 0:01:30]} Rh1 {[%emt 0:00:00]} 54. Rf8+ {[%emt 0:00:30]} Ke6 {[%emt 0:01:30]} 55. Rf5 {[%emt 0:00:30]} Rh2+ {[%emt 0:02:30]} 56. Nxh2 {[%emt 0:00:30]} Rxd3 {[%emt 0:00:30]} 57. Nf3 {[%emt 0:00:30]} Ra3 {[%emt 0:00:30]} 58. Rxe5+ {[%emt 0:01:30]} Kf6 {[%emt 0:00:30]} 59. Rf5+ {[%emt 0:00:00]} Ke7 {[%emt 0:00:30]} 60. Rxf4 {[%emt 0:01:00]} Rxa5 {[%emt 0:00:00]} 61. Ke3 {[%emt 0:01:30]} Rxc5 {[%emt 0:00:00]} 62. Kd4 {[%emt 0:00:00]} Rc1 {[%emt 0:00:30]} 63. Rf5 {[%emt 0:00:00]} Rd1+ {[%emt 0:00:30]} 64. Ke3 {[%emt 0:00:30]} Ra1 {[%emt 0:00:30]} 65. Nd4 {[%emt 0:00:00]} Re1+ {[%emt 0:00:30]} 66. Kd3 {[%emt 0:00:00]} Ra1 {[%emt 0:00:30]} 67. Ra5 {[%emt 0:01:30]} Rd1+ {[%emt 0:01:30]} 68. Kc4 {[%emt 0:00:30]} Kf6 {[%emt 0:01:30]} 69. e5+ {[%emt 0:00:30]} Kg5 {[%emt 0:01:30]} 70. e6+ {[%emt 0:00:30]} Kf6 {[%emt 0:00:30]} 71. Rf5+ {[%emt 0:00:30]} Ke7 {[%emt 0:00:00]} 72. Rf7+ {[%emt 0:00:30]} Ke8 {[%emt 0:00:00]} 73. Nf5 {[%emt 0:00:30]} Re1 {[%emt 0:00:30]} 74. Rh7 {[%emt 0:01:30]} 1-0